bitfinex/quotes_BTCUSD_20250525
["timestamp","ask_amount","ask_price","bid_price","bid_amount"]
[1748212647831,0.23344915,108220.0,108210.0,0.6780479]
[1748212648053,0.23344915,108220.0,108210.0,0.67880679]
[1748212648264,0.2472447,108220.0,108210.0,0.67880679]
[1748212649329,0.2472447,108220.0,108210.0,0.33880679]
[1748212649536,0.26910427,108220.0,108210.0,0.01]
[1748212649764,0.26910427,108220.0,108210.0,0.15764]
[1748212650021,0.26910427,108220.0,108210.0,0.00261815]
[1748212650227,0.28364512,108220.0,108210.0,0.00261815]
[1748212650437,0.25706691,108210.0,108200.0,0.47987051]
[1748212651275,0.25706691,108210.0,108200.0,0.00015051]
[1748212651512,0.25706691,108210.0,108200.0,0.14779051]
[1748212651730,0.25818485,108200.0,108190.0,0.31984]
[1748212652150,0.27674911,108200.0,108190.0,0.51394287]
[1748212652363,0.24554911,108200.0,108190.0,0.52318569]
[1748212652583,0.27674911,108200.0,108190.0,0.31984]
[1748212652787,0.19310287,108190.0,108180.0,0.2124934]
[1748212652997,0.19310287,108190.0,108180.0,0.30203896]
[1748212653205,0.19310287,108190.0,108180.0,0.44043554]
[1748212654001,0.19410287,108190.0,108180.0,0.43119203]
[1748212654231,0.01948522,108190.0,108180.0,0.44967879]
[1748212654415,0.02872804,108190.0,108180.0,0.44967879]
[1748212654973,0.02872804,108190.0,108180.0,0.45267879]
[1748212655171,0.03797095,108190.0,108180.0,0.45267879]
[1748212655379,0.22283091,108190.0,108180.0,0.45267879]
[1748212655578,0.22283091,108190.0,108180.0,0.46267879]
[1748212655920,0.22183091,108190.0,108180.0,0.46267879]
[1748212656115,0.03697095,108190.0,108180.0,0.46267879]
[1748212656321,0.03897095,108190.0,108180.0,0.45967879]
[1748212656557,0.03897095,108190.0,108180.0,0.46167879]
[1748212657276,0.002,108190.0,108180.0,0.46167879]
[1748212657482,0.002,108190.0,108180.0,1.33395102]
[1748212658477,0.002,108190.0,108180.0,0.86467879]
[1748212658677,0.002,108190.0,108180.0,1.33395102]
[1748212661755,0.002,108190.0,108180.0,1.36165602]
[1748212662265,0.002,108190.0,108180.0,0.97395879]
[1748212663227,0.002,108190.0,108180.0,1.47383102]
[1748212663976,0.02048488,108190.0,108180.0,1.47383102]
[1748212664512,0.02048488,108190.0,108180.0,1.44323102]
[1748212664712,0.002,108190.0,108180.0,1.44323102]
[1748212664919,0.01124231,108190.0,108180.0,1.44323102]
[1748212665427,0.02048479,108190.0,108180.0,1.44323102]
[1748212665625,0.01124231,108190.0,108180.0,1.44323102]
[1748212666011,0.01124231,108190.0,108180.0,1.12331102]
[1748212666222,0.01124231,108190.0,108180.0,1.44275102]
[1748212666983,0.02972736,108190.0,108180.0,1.29507102]
[1748212667161,0.02972736,108190.0,108180.0,1.44275102]
[1748212667537,0.002,108190.0,108180.0,0.97347879]
[1748212667719,0.01124231,108190.0,108180.0,0.97347879]
[1748212669863,0.01124222,108190.0,108180.0,0.97347879]
[1748212670085,0.02048453,108190.0,108180.0,0.97347879]
[1748212670742,0.02972701,108190.0,108180.0,0.97347879]
[1748212670979,0.002,108190.0,108180.0,1.44275102]
[1748212671206,0.002,108190.0,108180.0,1.50565102]
[1748212673399,0.002,108190.0,108180.0,1.03637879]
[1748212673610,0.002,108190.0,108180.0,1.50565102]
[1748212674019,0.002,108190.0,108180.0,1.47295102]
[1748212675243,0.002,108190.0,108180.0,1.50585102]
[1748212677397,0.002,108190.0,108180.0,1.53479724]
[1748212680190,0.002,108190.0,108180.0,1.21535724]
[1748212680416,0.002,108190.0,108180.0,1.53479724]
[1748212682081,0.002,108190.0,108180.0,1.06552501]
[1748212682291,0.002,108190.0,108180.0,1.53479724]
[1748212684260,0.002,108190.0,108180.0,1.50185724]
[1748212685114,9.262e-05,108210.0,108180.0,1.47542672]
[1748212685328,9.262e-05,108210.0,108200.0,1.14178606]
[1748212685534,9.262e-05,108210.0,108200.0,1.28942606]
[1748212686368,9.262e-05,108210.0,108200.0,1.43078606]
[1748212686579,0.03019262,108210.0,108200.0,0.96151383]
[1748212687113,0.03119262,108210.0,108200.0,0.96151383]
[1748212687969,0.0301,108230.0,108210.0,0.37125286]
[1748212688179,0.0301,108250.0,108240.0,0.21248972]
[1748212688387,0.0301,108250.0,108240.0,1.09070751]
[1748212688549,0.0301,108250.0,108240.0,0.62143528]
[1748212688772,0.063,108250.0,108240.0,0.62143528]
[1748212688937,0.063,108250.0,108240.0,0.63593301]
[1748212689778,0.063,108250.0,108240.0,0.40826486]
[1748212689975,0.063,108250.0,108240.0,0.96075458]
[1748212690629,0.068,108250.0,108240.0,0.94725685]
[1748212690773,0.07,108250.0,108240.0,0.94725685]
[1748212693028,0.07,108250.0,108240.0,0.79961685]
[1748212693252,0.07,108250.0,108240.0,0.94725685]
[1748212694732,0.0792371,108250.0,108240.0,0.94725685]
[1748212695271,0.07,108250.0,108240.0,0.94725685]
[1748212695715,0.07,108250.0,108240.0,0.79957685]
[1748212695924,0.07,108250.0,108240.0,0.94721685]
[1748212696134,0.07,108250.0,108240.0,0.95721685]
[1748212696552,0.0792371,108250.0,108240.0,0.95721685]
[1748212697065,0.07,108250.0,108240.0,0.95721685]
[1748212697276,0.0792371,108250.0,108240.0,0.95721685]
[1748212697480,0.07,108250.0,108240.0,0.95721685]
[1748212698281,0.0371,108250.0,108240.0,0.95721685]
[1748212698516,0.007,108250.0,108240.0,1.42648908]
[1748212698783,0.007,108250.0,108240.0,1.45828908]
[1748212699023,0.007,108250.0,108240.0,1.48968908]
[1748212699729,0.005,108250.0,108240.0,1.48968908]
[1748212699976,0.006,108250.0,108240.0,1.48968908]
[1748212700160,0.00050186,108260.0,108250.0,0.58427008]
[1748212700328,0.00050186,108260.0,108250.0,1.14308787]
[1748212700863,0.00050186,108260.0,108250.0,1.17448787]
[1748212702436,0.00050186,108260.0,108250.0,1.18902872]
[1748212702857,0.00050186,108260.0,108250.0,1.17448787]
[1748212703065,0.00050186,108260.0,108250.0,1.46184787]
[1748212703289,0.00050186,108260.0,108250.0,1.46284787]
[1748212703493,0.00350186,108260.0,108250.0,1.46284787]
[1748212703902,0.00350186,108260.0,108250.0,1.46484787]
[1748212704110,0.00050186,108260.0,108250.0,1.46384787]
[1748212704333,0.00250186,108260.0,108250.0,1.43204787]
[1748212705100,0.00250186,108260.0,108250.0,1.44649573]
[1748212705713,0.00250186,108260.0,108250.0,1.47919573]
[1748212707216,0.00250186,108260.0,108250.0,1.44649573]
[1748212708205,0.00250186,108260.0,108250.0,1.47829573]
[1748212709234,0.00250186,108260.0,108250.0,1.15953573]
[1748212709428,0.00250186,108260.0,108250.0,1.47829573]
[1748212709906,0.00250186,108260.0,108250.0,1.47825573]
[1748212710758,0.00250186,108260.0,108250.0,1.49279658]
[1748212710939,0.00250186,108260.0,108250.0,1.99466881]
[1748212711181,0.00250186,108260.0,108250.0,1.52539658]
[1748212711821,0.00250186,108260.0,108250.0,1.99466881]
[1748212712023,0.00250186,108260.0,108250.0,1.98022095]
[1748212712231,0.00250186,108260.0,108250.0,1.51094872]
[1748212712659,0.00250186,108260.0,108250.0,1.98022095]
[1748212714135,0.00250186,108260.0,108250.0,1.46380787]
[1748212714344,0.00250186,108260.0,108250.0,1.43200787]
[1748212714772,0.00250186,108260.0,108250.0,1.46470787]
[1748212715184,0.00250186,108260.0,108250.0,1.43200787]
[1748212715393,0.03360186,108260.0,108250.0,0.96273564]
[1748212716955,0.00250186,108260.0,108250.0,0.96273564]
[1748212717116,0.00250186,108260.0,108250.0,0.99303564]
[1748212717323,0.00250186,108260.0,108250.0,0.96273564]
[1748212717892,0.03300186,108260.0,108250.0,0.96273564]
[1748212718877,0.06600186,108260.0,108250.0,1.43200787]
[1748212720034,0.06600186,108260.0,108250.0,0.96273564]
[1748212720363,0.03300186,108260.0,108250.0,0.96273564]
[1748212720992,0.03300186,108260.0,108250.0,0.81517564]
[1748212721207,0.06520186,108260.0,108250.0,0.96273564]
[1748212721750,0.07443828,108260.0,108250.0,0.67170564]
[1748212721955,0.06520186,108260.0,108250.0,0.99042564]
[1748212722740,0.06520186,108260.0,108250.0,1.00492784]
[1748212722940,0.07443811,108260.0,108250.0,1.00492784]
[1748212723218,0.06520186,108260.0,108250.0,1.00492784]
[1748212724456,0.06520186,108260.0,108250.0,1.0158097]
[1748212724700,0.03300186,108260.0,108250.0,1.0158097]
[1748212724910,0.03300186,108260.0,108250.0,1.48508193]
[1748212725126,0.00250186,108260.0,108250.0,1.48508193]
[1748212725789,0.00250186,108260.0,108250.0,1.45969787]
[1748212728117,0.03510186,108260.0,108250.0,0.99042564]
[1748212728329,0.06540186,108260.0,108250.0,0.99042564]
[1748212730027,0.06540186,108260.0,108250.0,0.77795556]
[1748212730204,0.06540186,108260.0,108250.0,0.99042564]
[1748212730884,0.06540186,108260.0,108250.0,1.00495142]
[1748212731509,0.06540186,108260.0,108250.0,1.01495142]
[1748212732777,0.06540186,108260.0,108250.0,0.86739142]
[1748212732986,0.06540186,108260.0,108250.0,1.01495142]
[1748212733804,0.06540186,108260.0,108250.0,0.86739142]
[1748212734015,0.06540186,108260.0,108250.0,1.01495142]
[1748212735953,0.06540186,108260.0,108250.0,1.51467974]
[1748212740345,0.00250186,108260.0,108250.0,1.51467974]
[1748212740554,0.00250186,108260.0,108250.0,1.57737974]
[1748212742237,0.00250186,108260.0,108250.0,1.59180018]
[1748212743860,0.00250186,108260.0,108250.0,1.56285396]
[1748212745142,0.04558131,108290.0,108280.0,0.53394059]
[1748212745378,0.0457318,108290.0,108280.0,1.44149447]
[1748212746395,0.0784318,108290.0,108280.0,1.44149447]
[1748212746720,0.0784318,108290.0,108280.0,1.45599534]
[1748212747131,0.0834318,108290.0,108280.0,1.45699534]
[1748212747446,0.0864318,108290.0,108280.0,1.45699534]
[1748212749156,0.0864318,108290.0,108280.0,1.46699534]
[1748212749925,0.0537318,108290.0,108280.0,1.46699534]
[1748212750999,0.0861318,108290.0,108280.0,1.46699534]
[1748212751204,0.0861318,108290.0,108280.0,1.49467934]
[1748212751986,0.10459978,108290.0,108280.0,0.99495102]
[1748212752240,0.09536566,108290.0,108280.0,0.99495102]
[1748212752465,0.10459969,108290.0,108280.0,0.99495102]
[1748212752698,0.30775744,108290.0,108280.0,0.05318487]
[1748212752914,0.28928955,108290.0,108280.0,0.02550087]
[1748212753567,0.80355872,108290.0,108280.0,0.02550087]
[1748212753996,0.80355872,108290.0,108250.0,0.1829365]
[1748212753997,0.26621387,108260.0,108250.0,0.1829365]
[1748212754204,0.26621387,108260.0,108250.0,0.44800159]
[1748212754425,0.26621387,108260.0,108250.0,0.30044159]
[1748212754629,0.26621387,108260.0,108250.0,0.0353765]
[1748212755244,0.26621387,108260.0,108250.0,0.01]
[1748212755655,0.26621387,108260.0,108250.0,0.011]
[1748212756115,0.26621387,108260.0,108250.0,0.0046242]
[1748212756116,0.28375472,108260.0,108250.0,0.0046242]
[1748212756364,0.28375472,108260.0,108250.0,0.0323192]
[1748212756587,0.28375472,108260.0,108250.0,0.0046242]
[1748212756765,0.2582952,108250.0,108240.0,0.16843563]
[1748212757225,0.2582952,108250.0,108240.0,0.1501842]
[1748212757683,0.25027457,108240.0,108230.0,0.89088467]
[1748212757921,0.28622861,108240.0,108230.0,0.98966921]
[1748212758136,0.10145404,108240.0,108230.0,0.99941022]
[1748212758370,0.28422895,108240.0,108230.0,0.99017124]
[1748212758783,0.28422895,108240.0,108230.0,0.99317124]
[1748212758990,0.28522895,108240.0,108230.0,0.99253468]
[1748212759420,0.10045438,108240.0,108230.0,0.99253468]
[1748212759541,0.28522895,108240.0,108230.0,0.99253408]
[1748212759930,0.28522895,108240.0,108230.0,0.99217408]
[1748212760150,0.26675193,108240.0,108230.0,0.60934642]
[1748212760356,0.26675193,108240.0,108230.0,0.46174642]
[1748212760529,0.26675193,108240.0,108230.0,0.60934642]
[1748212760938,0.26675193,108240.0,108230.0,0.59164742]
[1748212761345,0.26675193,108240.0,108230.0,0.38171147]
[1748212761646,0.26675193,108240.0,108230.0,0.25164742]
[1748212762196,0.26675193,108240.0,108230.0,0.10404742]
[1748212762326,0.26675193,108240.0,108230.0,0.25164742]
[1748212762538,0.26675193,108240.0,108230.0,0.10404742]
[1748212762739,0.26675193,108240.0,108230.0,0.25164742]
[1748212764042,0.60675193,108240.0,108230.0,0.01450186]
[1748212764242,0.60675193,108240.0,108230.0,0.00712219]
[1748212764667,0.26507029,108230.0,108210.0,0.56741264]
[1748212764873,0.07103983,108220.0,108210.0,0.6569582]
[1748212765080,0.0303,108220.0,108210.0,0.6569582]
[1748212765289,0.01409389,108230.0,108220.0,0.19404812]
[1748212765534,0.01409389,108230.0,108220.0,0.75230057]
[1748212765716,0.6327474,108250.0,108240.0,0.19401251]
[1748212765920,0.03045047,108250.0,108240.0,0.4403962]
[1748212766122,0.03968774,108250.0,108240.0,0.4403962]
[1748212766332,0.09086271,108250.0,108240.0,0.4403962]
[1748212766548,0.10010041,108250.0,108240.0,0.4403962]
[1748212766757,0.07238766,108250.0,108240.0,0.4403962]
[1748212766958,0.04892502,108250.0,108240.0,0.4403962]
[1748212767180,0.03645047,108250.0,108240.0,0.4413962]
[1748212767370,0.04568774,108250.0,108240.0,0.4413962]
[1748212767599,0.05492518,108250.0,108240.0,0.4413962]
[1748212767801,0.06092518,108250.0,108240.0,0.4413962]
[1748212767984,0.07016279,108250.0,108240.0,0.4413962]
[1748212768184,0.05168774,108250.0,108240.0,0.4413962]
[1748212768396,0.01215047,108250.0,108240.0,0.4413962]
[1748212768619,0.01215047,108250.0,108240.0,0.97590309]
[1748212769496,0.01215047,108250.0,108240.0,0.98677872]
[1748212769917,0.00015047,108250.0,108240.0,0.98577872]
[1748212770341,0.00315047,108250.0,108240.0,0.98577872]
[1748212770684,0.00615047,108250.0,108240.0,0.98577872]
[1748212770882,0.00615047,108250.0,108240.0,0.95257872]
[1748212771088,0.00615047,108250.0,108240.0,1.29257872]
[1748212771336,0.00615047,108250.0,108240.0,1.43033872]
[1748212771565,0.00615047,108250.0,108240.0,1.44033872]
[1748212771780,0.00615047,108250.0,108240.0,0.97163183]
[1748212774112,0.03825047,108250.0,108240.0,0.97163183]
[1748212775085,0.07878757,108250.0,108240.0,0.82403183]
[1748212775234,0.06955047,108250.0,108240.0,0.97163183]
[1748212775648,0.07878766,108250.0,108240.0,0.97163183]
[1748212775848,0.07878757,108250.0,108240.0,0.97163183]
[1748212776320,0.00615047,108250.0,108240.0,1.46803572]
[1748212776533,0.07578131,108290.0,108280.0,0.53394059]
[1748212776743,0.01428276,108290.0,108280.0,0.94140615]
[1748212777264,0.02351654,108290.0,108280.0,0.82149115]
[1748212777464,0.01428276,108290.0,108280.0,0.96909115]
[1748212777672,0.08128276,108290.0,108280.0,0.96909115]
[1748212777892,0.08628276,108290.0,108280.0,0.97009115]
[1748212778299,0.05428276,108290.0,108280.0,0.97009115]
[1748212778698,0.02428276,108290.0,108280.0,0.97009115]
[1748212779201,0.01928276,108290.0,108280.0,0.97009115]
[1748212779353,0.02028276,108290.0,108280.0,0.97009115]
[1748212779582,0.02128276,108290.0,108280.0,0.97009115]
[1748212780035,0.03051654,108290.0,108280.0,0.97009115]
[1748212780242,0.11098477,108290.0,108280.0,0.97009115]
[1748212780743,0.11098477,108290.0,108280.0,0.79977115]
[1748212780949,0.10175057,108290.0,108280.0,0.79977115]
[1748212781355,0.09251654,108290.0,108280.0,0.79977115]
[1748212781559,0.06975049,108290.0,108280.0,0.79977115]
[1748212782209,0.06975049,108290.0,108280.0,0.79973115]
[1748212782446,0.06051654,108290.0,108280.0,0.79973115]
[1748212782623,0.06975049,108290.0,108280.0,0.65217115]
[1748212782863,0.31294244,108290.0,108280.0,0.79973124]
[1748212783082,0.11901881,108290.0,108280.0,0.66140595]
[1748212783307,0.11901872,108290.0,108280.0,0.78128095]
[1748212783648,0.08208276,108290.0,108280.0,0.78128095]
[1748212783865,0.02128276,108290.0,108280.0,1.28078784]
[1748212784710,0.02128276,108290.0,108280.0,1.29166347]
[1748212785151,0.02128276,108290.0,108280.0,0.82295658]
[1748212788581,0.02128276,108290.0,108280.0,0.85063858]
[1748212789208,0.02128276,108290.0,108280.0,0.81983858]
[1748212790604,0.02128276,108290.0,108280.0,1.28854547]
[1748212792155,0.00750145,108290.0,108280.0,1.31994547]
[1748212792362,0.00750145,108290.0,108280.0,1.35104547]
[1748212792785,0.00750145,108290.0,108280.0,1.35467071]
[1748212793152,0.00750145,108290.0,108280.0,1.36399536]
[1748212793355,0.00650145,108290.0,108280.0,1.36399536]
[1748212794620,0.00050145,108290.0,108280.0,1.36299536]
[1748212794847,0.00050145,108290.0,108280.0,1.37853621]
[1748212795839,0.00050145,108290.0,108280.0,1.39303708]
[1748212798398,0.03,108330.0,108320.0,0.53386897]
[1748212798614,0.10673285,108360.0,108330.0,0.19385107]
[1748212798615,0.0633,108340.0,108330.0,0.19385107]
[1748212798829,0.0633,108340.0,108330.0,0.43091663]
[1748212799700,0.033,108340.0,108330.0,0.43091663]
[1748212799900,0.037,108340.0,108330.0,0.43091663]
[1748212800254,0.037,108340.0,108330.0,0.45858763]
[1748212800455,0.004,108340.0,108330.0,0.45858763]
[1748212800667,0.0358,108340.0,108330.0,0.45858763]
[1748212800905,0.0681,108340.0,108330.0,0.45858763]
[1748212801856,0.0681,108340.0,108330.0,0.45958763]
[1748212802045,0.0731,108340.0,108330.0,0.45958763]
[1748212802666,0.0731,108340.0,108330.0,0.46958763]
[1748212805033,0.0408,108340.0,108330.0,0.46958763]
[1748212807050,0.009,108340.0,108330.0,1.27829452]
[1748212807240,0.009,108340.0,108330.0,1.34409452]
[1748212807416,0.009,108340.0,108330.0,1.35348362]
[1748212808013,0.009,108340.0,108330.0,1.36802447]
[1748212808257,0.004,108340.0,108330.0,1.36702447]
[1748212808501,0.00015051,108360.0,108350.0,0.53381529]
[1748212808709,0.00015051,108360.0,108350.0,1.47298774]
[1748212808840,0.00015051,108360.0,108350.0,1.49303161]
[1748212809040,0.00015051,108360.0,108350.0,1.46223161]
[1748212809292,0.00015051,108360.0,108350.0,1.49443161]
[1748212809482,0.00015051,108360.0,108350.0,1.50897246]
[1748212809685,0.00015051,108360.0,108350.0,1.52776267]
[1748212810063,0.00215051,108360.0,108350.0,1.52776267]
[1748212810477,0.00315051,108360.0,108350.0,1.52776267]
[1748212810934,0.00315051,108360.0,108350.0,0.65616085]
[1748212811138,0.00315051,108360.0,108350.0,1.40938774]
[1748212811550,0.00315051,108360.0,108350.0,0.95068085]
[1748212811705,0.00115051,108360.0,108350.0,0.95068085]
[1748212811915,0.06475051,108360.0,108350.0,0.63336085]
[1748212812121,0.06475051,108360.0,108350.0,0.95068085]
[1748212812122,0.06575051,108360.0,108350.0,0.95068085]
[1748212812525,0.07397832,108360.0,108350.0,0.63336085]
[1748212812747,0.06475051,108360.0,108350.0,0.95368085]
[1748212812910,0.06475051,108360.0,108350.0,0.29636085]
[1748212813121,0.06475051,108360.0,108350.0,0.61068085]
[1748212813314,0.06375051,108360.0,108350.0,0.95068085]
[1748212813507,0.06375051,108360.0,108350.0,0.63436085]
[1748212813708,0.06375051,108360.0,108350.0,0.95168085]
[1748212814115,0.00015051,108360.0,108350.0,1.55744402]
[1748212814315,0.00015051,108360.0,108350.0,1.57198487]
[1748212814563,0.01362239,108390.0,108380.0,0.53376164]
[1748212814765,0.0306,108400.0,108390.0,0.53374377]
[1748212815113,0.03110105,108400.0,108390.0,0.62328933]
[1748212815880,0.04471894,108400.0,108390.0,0.62328933]
[1748212816060,0.04971894,108400.0,108390.0,0.62428933]
[1748212816952,0.05271894,108400.0,108390.0,0.62428933]
[1748212817690,0.05271894,108400.0,108390.0,0.82428933]
[1748212817896,0.09494335,108400.0,108390.0,0.85194533]
[1748212818290,0.09494335,108400.0,108390.0,0.86194533]
[1748212818516,0.08571894,108400.0,108390.0,0.86194533]
[1748212819157,0.05271894,108400.0,108390.0,0.86194533]
[1748212820515,0.05271894,108400.0,108390.0,1.17882533]
[1748212820951,0.10376784,108400.0,108390.0,1.17882533]
[1748212821154,0.10376775,108400.0,108390.0,0.86194533]
[1748212821466,0.09454326,108400.0,108390.0,1.17882533]
[1748212821827,0.08531894,108400.0,108390.0,1.17882533]
[1748212822148,0.08531894,108400.0,108390.0,0.86194533]
[1748212822353,0.09454343,108400.0,108390.0,1.17882533]
[1748212822757,0.10376784,108400.0,108390.0,0.86194533]
[1748212822958,0.28827036,108400.0,108390.0,0.211]
[1748212823967,0.29683452,108400.0,108390.0,0.211]
[1748212825116,0.29683452,108400.0,108390.0,0.38629292]
[1748212825318,0.29683452,108400.0,108390.0,0.39551877]
[1748212825523,0.29683452,108400.0,108390.0,0.41397005]
[1748212825865,0.29683452,108400.0,108390.0,0.40474445]
[1748212826102,0.29683452,108400.0,108390.0,0.39551877]
[1748212826298,0.28760986,108400.0,108390.0,0.211]
[1748212826504,0.27838494,108400.0,108390.0,0.211]
[1748212826711,0.0938831,108400.0,108390.0,0.40474403]
[1748212826909,0.30605859,108400.0,108390.0,0.40474403]
[1748212827110,0.31528351,108400.0,108390.0,0.40474403]
[1748212827357,0.31528419,108400.0,108390.0,0.40474403]
[1748212827682,0.31528419,108400.0,108390.0,0.38314669]
[1748212828718,0.31528419,108400.0,108390.0,0.38314686]
[1748212828929,0.11233217,108400.0,108390.0,0.38314686]
[1748212829128,0.12155709,108400.0,108390.0,0.3923722]
[1748212829549,0.12155709,108400.0,108390.0,0.37392126]
[1748212829733,0.30605893,108400.0,108390.0,0.36469558]
[1748212830349,0.28760986,108400.0,108390.0,0.36469558]
[1748212830503,0.28760986,108400.0,108390.0,0.1986286]
[1748212832335,0.28760986,108400.0,108390.0,0.18940266]
[1748212832743,0.29683452,108400.0,108390.0,0.37392126]
[1748212832940,0.30605952,108400.0,108390.0,0.36469558]
[1748212833128,0.11233217,108400.0,108390.0,0.37392143]
[1748212833355,0.121557,108400.0,108390.0,0.39237237]
[1748212833564,0.13078192,108400.0,108390.0,0.39237237]
[1748212834156,0.07050768,108400.0,108390.0,0.48191793]
[1748212834383,0.0612831,108400.0,108390.0,0.48191793]
[1748212834804,0.0612831,108400.0,108390.0,0.30251527]
[1748212835628,0.07050751,108400.0,108390.0,0.30251527]
[1748212835813,0.09264335,108400.0,108390.0,0.30251527]
[1748212836011,0.08341894,108400.0,108390.0,0.30251527]
[1748212836419,0.05271894,108400.0,108390.0,0.30251527]
[1748212836818,0.06194326,108400.0,108390.0,0.30251527]
[1748212837049,0.05271894,108400.0,108390.0,0.30251527]
[1748212837229,0.02211894,108400.0,108390.0,0.30251527]
[1748212837741,0.02211894,108400.0,108390.0,0.31330836]
[1748212838291,0.28806985,108400.0,108390.0,0.31330836]
[1748212838495,0.12201776,108400.0,108390.0,0.31330836]
[1748212838703,0.12201768,108400.0,108390.0,0.31330836]
[1748212839483,0.11279276,108400.0,108390.0,0.46070836]
[1748212839965,0.12201768,108400.0,108390.0,0.46070836]
[1748212840167,0.09434335,108400.0,108390.0,0.46070836]
[1748212840361,0.10356793,108400.0,108390.0,0.46070836]
[1748212840500,0.12201742,108400.0,108390.0,0.46070836]
[1748212840691,0.11279259,108400.0,108390.0,0.46070836]
[1748212841287,0.12201742,108400.0,108390.0,0.46070836]
[1748212841685,0.11279259,108400.0,108390.0,0.46070836]
[1748212841887,0.01934335,108400.0,108390.0,0.46070836]
[1748212842099,0.01934326,108400.0,108390.0,0.46070836]
[1748212842938,0.02856775,108400.0,108390.0,0.46070836]
[1748212843303,0.01934326,108400.0,108390.0,0.46070836]
[1748212843657,0.033108,108400.0,108390.0,0.31330836]
[1748212843864,0.033108,108400.0,108390.0,0.46070836]
[1748212844322,0.02388368,108400.0,108390.0,0.46070836]
[1748212844665,0.04233249,108400.0,108390.0,0.46070836]
[1748212844836,0.063308,108400.0,108390.0,0.46070836]
[1748212845062,0.05408368,108400.0,108390.0,0.46070836]
[1748212847923,0.063308,108400.0,108390.0,0.46070836]
[1748212848138,0.05408368,108400.0,108390.0,0.46070836]
[1748212848844,0.06330817,108400.0,108390.0,0.46070836]
[1748212849048,0.05408368,108400.0,108390.0,0.46070836]
[1748212849544,0.02388368,108400.0,108390.0,0.46070836]
[1748212849747,0.03310809,108400.0,108390.0,0.46070836]
[1748212849972,0.02388368,108400.0,108390.0,0.46070836]
[1748212850178,0.01376474,108400.0,108390.0,0.49220836]
[1748212850383,0.01376474,108400.0,108390.0,0.52510836]
[1748212850586,0.7288,108420.0,108410.0,0.19370803]
[1748212850789,0.72895028,108420.0,108410.0,0.19370803]
[1748212851781,0.73295028,108420.0,108410.0,0.34210803]
[1748212852188,0.74617299,108420.0,108410.0,0.34210803]
[1748212852656,0.75539595,108420.0,108410.0,0.34210803]
[1748212852807,0.76892582,108420.0,108410.0,0.34210803]
[1748212853013,0.75048015,108420.0,108410.0,0.34210803]
[1748212853776,0.02168015,108420.0,108410.0,0.43165359]
[1748212854122,0.09430294,108420.0,108410.0,0.43165359]
[1748212854341,0.10343979,108420.0,108410.0,0.34210803]
[1748212854660,0.09421683,108420.0,108410.0,0.34210803]
[1748212855065,0.09543971,108420.0,108410.0,0.34110803]
[1748212855287,0.09743971,108420.0,108410.0,0.34210803]
[1748212855431,0.09743971,108420.0,108410.0,0.19470803]
[1748212855636,0.10766284,108420.0,108410.0,0.34210803]
[1748212855836,0.09843971,108420.0,108410.0,0.35210803]
[1748212856517,0.10766267,108420.0,108410.0,0.35210803]
[1748212856723,0.10766267,108420.0,108410.0,0.20470803]
[1748212856917,0.29213133,108420.0,108410.0,0.32443634]
[1748212857130,0.29213133,108420.0,108410.0,0.34288465]
[1748212857274,0.29213133,108420.0,108410.0,0.33366058]
[1748212857473,0.29213133,108420.0,108410.0,0.3521088]
[1748212857903,0.29213133,108420.0,108410.0,0.34288473]
[1748212858106,0.01659404,108420.0,108410.0,0.72647411]
[1748212858726,0.01659404,108420.0,108410.0,0.75647411]
[1748212860065,0.01659404,108420.0,108410.0,0.7708649]
[1748212860989,0.01659404,108420.0,108410.0,1.1108649]
[1748212861213,0.00306417,108420.0,108410.0,1.57957179]
[1748212862134,0.00206417,108420.0,108410.0,1.565181]
[1748212863129,6.417e-05,108420.0,108410.0,1.02121783]
[1748212863332,6.417e-05,108420.0,108410.0,1.48992472]
[1748212863683,0.00106417,108420.0,108410.0,1.48992472]
[1748212863857,6.417e-05,108420.0,108410.0,1.48992472]
[1748212864290,6.417e-05,108420.0,108410.0,1.49292472]
[1748212865650,6.417e-05,108420.0,108410.0,1.29445865]
[1748212865856,6.417e-05,108420.0,108410.0,1.46971914]
[1748212866047,6.417e-05,108420.0,108410.0,1.47894338]
[1748212866894,6.417e-05,108420.0,108410.0,1.49335575]
[1748212868322,6.417e-05,108420.0,108410.0,1.49327575]
[1748212869634,6.417e-05,108420.0,108410.0,1.17691575]
[1748212869876,6.417e-05,108420.0,108410.0,1.49327575]
[1748212871362,6.417e-05,108420.0,108410.0,1.44886338]
[1748212871987,6.417e-05,108420.0,108410.0,1.13250338]
[1748212872188,0.27530087,108420.0,108410.0,0.5801848]
[1748212872392,0.27530087,108420.0,108410.0,0.42040895]
[1748212872619,0.28452426,108420.0,108410.0,0.44965756]
[1748212872815,0.07238688,108420.0,108410.0,0.44965756]
[1748212873017,0.07238688,108420.0,108410.0,0.44965722]
[1748212873018,0.26607757,108420.0,108410.0,0.44965722]
[1748212873223,0.28452434,108420.0,108410.0,0.60943332]
[1748212873416,0.29374773,108420.0,108410.0,0.30229722]
[1748212873626,0.28452485,108420.0,108410.0,0.45888103]
[1748212873819,0.28452485,108420.0,108410.0,0.44808047]
[1748212874025,0.25685537,108420.0,108410.0,0.23592422]
[1748212874207,0.25685537,108420.0,108410.0,0.42040853]
[1748212874407,0.25685537,108420.0,108410.0,0.42963234]
[1748212874702,0.25685537,108420.0,108410.0,0.003]
[1748212875116,0.25685537,108420.0,108410.0,0.16903634]
[1748212875353,0.25685537,108420.0,108410.0,0.003]
[1748212876308,0.06316417,108420.0,108410.0,0.28625359]
[1748212876512,0.08160984,108420.0,108410.0,0.28625359]
[1748212876685,0.07238688,108420.0,108410.0,0.28625359]
[1748212876867,0.08160976,108420.0,108410.0,0.28625359]
[1748212877505,0.09083281,108420.0,108410.0,0.28625359]
[1748212878108,0.07238688,108420.0,108410.0,0.28625359]
[1748212878308,0.08160976,108420.0,108410.0,0.28625359]
[1748212878513,0.09083272,108420.0,108410.0,0.28625359]
[1748212878691,0.10005585,108420.0,108410.0,0.28625359]
[1748212878905,0.04098688,108420.0,108410.0,0.28625359]
[1748212879155,0.05943281,108420.0,108410.0,0.28625359]
[1748212879515,0.07318679,108420.0,108410.0,0.28625359]
[1748212879722,0.06396417,108420.0,108410.0,0.28625359]
[1748212879925,0.03176417,108420.0,108410.0,0.28625359]
[1748212880225,6.417e-05,108420.0,108410.0,1.15926048]
[1748212880634,6.417e-05,108420.0,108410.0,0.69055359]
[1748212883145,6.417e-05,108420.0,108410.0,1.00659359]
[1748212884484,6.417e-05,108420.0,108410.0,0.62625359]
[1748212884720,6.417e-05,108420.0,108410.0,0.94229359]
[1748212885155,6.417e-05,108420.0,108410.0,0.95671672]
[1748212885707,6.417e-05,108420.0,108410.0,0.64067672]
[1748212885912,6.417e-05,108420.0,108410.0,0.95671672]
[1748212886176,6.417e-05,108420.0,108410.0,0.98831672]
[1748212886830,6.417e-05,108420.0,108410.0,0.95671672]
[1748212889391,6.417e-05,108420.0,108410.0,0.64067672]
[1748212889774,6.417e-05,108420.0,108410.0,0.95671672]
[1748212890316,6.417e-05,108420.0,108410.0,0.65067672]